fUSD/lending_fUSD_20251122
["ID","MTS","AMOUNT","RATE_DAILY","PERIOD"]
[394648037,1763806347398,-298.0,0.00024658,2]
[394648038,1763806347407,-329.0,0.00024658,2]
[394648039,1763806347415,-329.0,0.00024658,2]
[394648040,1763806347424,-329.0,0.00024658,2]
[394648041,1763806347434,-329.0,0.00024658,2]
[394648042,1763806347442,-329.0,0.00024658,2]
[394648043,1763806347451,-329.0,0.00024658,2]
[394648044,1763806347460,-329.0,0.00024658,2]
[394648045,1763806347469,-329.0,0.00024658,2]
[394648046,1763806347478,-329.0,0.00024658,2]
[394648047,1763806347486,-329.0,0.00024658,2]
[394648048,1763806347495,-188.0,0.00024658,2]
[394648049,1763806347504,-188.0,0.00024658,2]
[394648050,1763806347513,-188.0,0.00024658,2]
[394648051,1763806347521,-188.0,0.00024658,2]
[394648052,1763806347530,-188.0,0.00024658,2]
[394648053,1763806347538,-188.0,0.00024658,2]
[394648054,1763806347547,-188.0,0.00024658,2]
[394648055,1763806347555,-188.0,0.00024658,2]
[394648056,1763806347564,-188.0,0.00024658,2]
[394648057,1763806347573,-188.0,0.00024658,2]
[394648058,1763806347581,-153.0,0.00024658,2]
[394648059,1763806347590,-153.0,0.00024658,2]
[394648060,1763806347599,-153.0,0.00024658,2]
[394648061,1763806347608,-153.0,0.00024658,2]
[394648062,1763806347617,-153.0,0.00024658,2]
[394648063,1763806347626,-1000.0,0.00024658,2]
[394648064,1763806347635,-193.36,0.00024658,2]
[394648065,1763806347644,-151.0,0.00024658,7]
[394648066,1763806347653,-151.0,0.00024658,7]
[394648067,1763806347662,-160.665284,0.00024658,7]
[394648068,1763806347672,-544.25852972,0.0002474,2]
[394648069,1763806347680,-500.0,0.0002474,2]
[394648070,1763806347689,-800.0,0.0002474,2]
[394648071,1763806347699,-609798.096498,0.000248,2]
[394648072,1763806347708,-6163.45,0.000249,7]
[394648073,1763806347717,-610371.577813,0.000249,2]
[394648074,1763806347727,-504.746169,0.00024999,120]
[394648075,1763806347738,-503.903985,0.00024999,120]
[394648076,1763806347748,-723.82161489,0.00025,2]
[394648077,1763806347758,-150.0,0.00025,30]
[394648078,1763806347772,-164.0,0.00025,5]
[394648079,1763806347781,-740.0,0.00025,5]
[394648080,1763806347790,-500.0,0.00025463,120]
[394648081,1763806347800,-2659.0,0.00025569,2]
[394648082,1763806347810,-6497.0,0.00025569,2]
[394648083,1763806347820,-659.9927596,0.000257,2]
[394648084,1763806347829,-659.9927596,0.000257,2]
[394648085,1763806347840,-500.0,0.00025716,2]
[394648086,1763806347849,-576.0,0.00025772,2]
[394648087,1763806347858,-609.0,0.00025772,2]
[394648088,1763806347868,-800.0,0.00025836,2]
[394648089,1763806347877,-1354.94175306,0.00026027,30]
[394648090,1763806347886,-668.65185757,0.00026484,2]
[394648091,1763806347895,-500.0,0.00026618,120]
[394648092,1763806347904,-663.98,0.00026676,2]
[394648093,1763806347913,-500.0,0.00026932,2]
[394648094,1763806347923,-154.0,0.0002697,120]
[394648095,1763806347933,-154.0,0.0002697,120]
[394648096,1763806347942,-154.0,0.0002698,120]
[394648097,1763806347951,-154.0,0.0002698,120]
[394648098,1763806347960,-154.0,0.0002698,120]
[394648099,1763806347969,-160.05,0.0002698,120]
[394648100,1763806347979,-246.66,0.00026986,120]
[394648101,1763806347989,-154.0,0.0002699,120]
[394648102,1763806347998,-154.0,0.0002699,120]
[394648103,1763806348007,-154.0,0.0002699,120]
[394648104,1763806348017,-154.0,0.0002699,120]
[394648105,1763806348026,-350.0,0.00027,120]
[394648106,1763806348035,-170.79,0.00027069,9]
[394648107,1763806348045,-150.0,0.00027369,2]
[394648108,1763806348054,-500.0,0.00027397,2]
[394648109,1763806348063,-500.0,0.00027397,2]
[394648110,1763806348071,-500.0,0.00027397,2]
[394648111,1763806348080,-500.0,0.00027397,2]
[394648112,1763806348091,-500.0,0.00027397,2]
[394648113,1763806348101,-500.0,0.00027397,2]
[394648114,1763806348111,-500.0,0.00027397,2]
[394648115,1763806348120,-500.0,0.00027397,2]
[394648116,1763806348130,-500.0,0.00027397,2]
[394648117,1763806348139,-500.0,0.00027397,2]
[394648118,1763806348148,-500.0,0.00027397,2]
[394648119,1763806348157,-500.0,0.00027397,2]
[394648120,1763806348166,-500.0,0.00027397,2]
[394648121,1763806348175,-291.97631106,0.00027397,2]
[394648122,1763806348185,-1000.0,0.00027397,2]
[394648123,1763806348194,-1000.0,0.00027397,2]
[394648124,1763806348203,-1000.0,0.00027397,2]
[394648125,1763806348212,-1000.0,0.00027397,2]
[394648126,1763806348221,-1000.0,0.00027397,2]
[394648127,1763806348229,-1000.0,0.00027397,2]
[394648128,1763806348238,-1000.0,0.00027397,2]
[394648129,1763806348247,-1000.0,0.00027397,2]
[394648130,1763806348255,-1001.17206595,0.00027397,2]
[394648131,1763806348264,-500.0,0.00027397,2]
[394648132,1763806348273,-500.0,0.00027397,2]
[394648133,1763806348282,-500.0,0.00027397,2]
[394648134,1763806348291,-500.0,0.00027397,2]
[394648135,1763806348300,-500.0,0.00027397,2]
[394648136,1763806348308,-500.0,0.00027397,2]
[394648137,1763806348317,-500.0,0.00027397,2]
[394648138,1763806348326,-500.0,0.00027397,2]
[394648139,1763806348335,-500.0,0.00027397,2]
[394648140,1763806348345,-500.0,0.00027397,2]
[394648141,1763806348353,-500.0,0.00027397,2]
[394648142,1763806348363,-500.0,0.00027397,2]
[394648143,1763806348372,-500.0,0.00027397,2]
[394648144,1763806348383,-500.0,0.00027397,2]
[394648145,1763806348393,-500.0,0.00027397,2]
[394648146,1763806348401,-500.0,0.00027397,2]
[394648147,1763806348412,-500.0,0.00027397,2]
[394648148,1763806348422,-500.0,0.00027397,2]
[394648149,1763806348436,-412.66909358,0.00027397,2]
[394648150,1763806348447,-500.0,0.00027397,2]
[394648151,1763806348456,-500.0,0.00027397,2]
[394648152,1763806348466,-500.0,0.00027397,2]
[394648153,1763806348475,-500.0,0.00027397,2]
[394648154,1763806348484,-500.0,0.00027397,2]
[394648155,1763806348494,-500.0,0.00027397,2]
[394648156,1763806348504,-500.0,0.00027397,2]
[394648157,1763806348514,-500.0,0.00027397,2]
[394648158,1763806348523,-500.0,0.00027397,2]
[394648159,1763806348532,-500.0,0.00027397,2]
[394648160,1763806348542,-500.0,0.00027397,2]
[394648161,1763806348552,-500.0,0.00027397,2]
[394648162,1763806348561,-500.0,0.00027397,2]
[394648163,1763806348570,-500.0,0.00027397,2]
[394648164,1763806348581,-500.0,0.00027397,2]
[394648165,1763806348590,-500.0,0.00027397,2]
[394648166,1763806348600,-500.0,0.00027397,2]
[394648167,1763806348610,-500.0,0.00027397,2]
[394648168,1763806348620,-295.0,0.00027397,2]
[394648169,1763806348630,-1326.45,0.00027397,2]
[394648170,1763806348817,-1326.45,0.00027397,2]
[394648171,1763806348827,-1326.45,0.00027397,2]
[394648172,1763806348837,-1326.45,0.00027397,2]
[394648173,1763806348848,-1326.45,0.00027397,2]
[394648174,1763806348858,-1326.45,0.00027397,2]
[394648175,1763806348867,-1326.45,0.00027397,2]
[394648176,1763806348876,-1326.45,0.00027397,2]
[394648177,1763806348886,-1326.45,0.00027397,2]
[394648178,1763806348896,-1326.45,0.00027397,2]
[394648179,1763806348905,-1326.45,0.00027397,2]
[394648180,1763806348915,-1326.45,0.00027397,2]
[394648181,1763806348925,-1326.45,0.00027397,2]
[394648182,1763806348935,-1326.45,0.00027397,2]
[394648183,1763806348945,-1326.45,0.00027397,2]
[394648184,1763806348955,-1326.45,0.00027397,2]
[394648185,1763806348964,-1326.45,0.00027397,2]
[394648186,1763806348973,-1326.45,0.00027397,2]
[394648187,1763806348983,-1326.45,0.00027397,2]
[394648188,1763806348993,-1326.45,0.00027397,2]
[394648189,1763806349003,-1326.45,0.00027397,2]
[394648190,1763806349012,-1326.45,0.00027397,2]
[394648191,1763806349022,-1326.45,0.00027397,2]
[394648192,1763806349031,-1326.54578329,0.00027397,2]
[394648193,1763806349041,-1436.93,0.00027397,2]
[394648194,1763806349050,-300.0,0.00027397,2]
[394648195,1763806349059,-500.0,0.00027397,5]
[394648196,1763806349069,-501.91965314,0.00027397,5]
[394648197,1763806349079,-158.57270502,0.00027397,5]
[394648198,1763806349090,-157.38617821,0.00027397,5]
[394648199,1763806349099,-160.0,0.00027397,2]
[394648200,1763806349111,-3406.72,0.000274,2]
[394648201,1763806349122,-3406.72,0.000274,2]
[394648202,1763806349132,-188.78,0.000276,120]
[394648203,1763806349140,-2444.28,0.00027671,2]
[394648204,1763806349149,-500.0,0.00027773,120]
[394648205,1763806349159,-300.0,0.00028,120]
[394648206,1763806349167,-800.0,0.00028028,7]
[394648207,1763806349176,-2000.0,0.000281,2]
[394648208,1763806349187,-202.47243292,0.00028126,2]
[394648209,1763806349196,-448.68,0.000282,7]
[394648210,1763806349206,-500.0,0.00028516,2]
[394648211,1763806349216,-2659.0,0.00028569,2]
[394648212,1763806349229,-6497.0,0.00028569,2]
[394648213,1763806349240,-180.0,0.00028767,2]
[394648214,1763806349250,-576.0,0.00028772,2]
[394648215,1763806349258,-609.0,0.00028772,2]
[394648216,1763806349267,-500.0,0.00028927,120]
[394648217,1763806349277,-500.0,0.00029124,7]
[394648218,1763806349287,-519.50602866,0.00029223,2]
[394648219,1763806349297,-661.95,0.00029272,30]
[394648220,1763806349306,-800.0,0.00029672,7]
[394648221,1763806349316,-6163.45,0.000298,7]
[394648222,1763806349325,-448.68,0.0003,7]
[394648223,1763806349334,-300.0,0.0003,120]
[394648224,1763806349344,-500.0,0.0003,5]
[394648225,1763806349353,-20349.53647757,0.0003,2]
[394648226,1763806349362,-3714.0,0.0003,3]
[394648227,1763806349372,-4357.33151594,0.0003,60]
[394648228,1763806349382,-185.08,0.0003,22]
[394648229,1763806349392,-500.0,0.00030082,120]
[394648230,1763806349400,-478.79603382,0.0003013,30]
[394648231,1763806349410,-501.99801054,0.00030136,120]
[394648232,1763806349418,-200.0,0.00030137,120]
[394648233,1763806349427,-200.0,0.00030137,2]
[394648234,1763806349438,-500.0,0.00030768,7]
[394648235,1763806349447,-1763.36,0.000308,14]
[394648236,1763806349456,-10453.72064571,0.00030888,60]
[394648237,1763806349465,-300.0,0.00031,120]
[394648238,1763806349474,-500.0,0.00031237,120]
[394648239,1763806349483,-800.0,0.00031316,7]
[394648240,1763806349491,-500.0,0.00031316,2]
[394648241,1763806349500,-250.0,0.00031507,2]
[394648242,1763806349509,-270.69,0.00031507,120]
[394648243,1763806349518,-456.848,0.00031569,2]
[394648244,1763806349528,-6497.0,0.00031569,2]
[394648245,1763806349537,-576.0,0.00031772,2]
[394648246,1763806349546,-2000.0,0.000318,2]
[394648247,1763806349555,-200.0,0.00032,120]
[394648248,1763806349564,-500.0,0.00032391,120]
[394648249,1763806349573,-500.0,0.00032412,7]
[394648250,1763806349583,-174.674,0.000325,7]
[394648251,1763806349592,-174.674,0.000325,7]
[394648252,1763806349602,-174.674,0.000325,7]
[394648253,1763806349611,-174.675,0.000325,7]
[394648254,1763806349620,-174.674,0.000325,7]
[394648255,1763806349629,-433.50652127,0.00032876,2]
[394648256,1763806349638,-350.93390058,0.00032876,2]
[394648257,1763806349647,-402.87329093,0.00032876,2]
[394648258,1763806349656,-398.39199104,0.00032876,2]
[394648259,1763806349665,-352.02617238,0.00032876,2]
[394648260,1763806349674,-436.66179898,0.00032876,2]
[394648261,1763806349685,-500.0,0.00032876,2]
[394648262,1763806349695,-500.0,0.00032876,2]
[394648263,1763806349704,-500.0,0.00032876,2]
[394648264,1763806349714,-500.0,0.00032876,2]
[394648265,1763806349724,-509.19748316,0.00032876,2]
[394648266,1763806349738,-500.0,0.00032876,2]
[394648267,1763806349750,-323.62989929,0.00032876,2]
[394648268,1763806349762,-500.0,0.00032876,2]
[394648269,1763806349774,-500.0,0.00032876,2]
[394648270,1763806349782,-500.0,0.00032876,2]
[394648271,1763806349792,-258.14459888,0.00032876,2]
[394648272,1763806349803,-255.0,0.00032876,2]
[394648273,1763806349812,-500.0,0.00032876,120]
[394648274,1763806349821,-500.0,0.00032876,120]
[394648275,1763806349830,-500.0,0.00032876,120]
[394648276,1763806349841,-500.0,0.00032876,120]
[394648277,1763806349850,-500.0,0.00032876,120]
[394648278,1763806349861,-500.0,0.00032876,120]
[394648279,1763806349870,-500.0,0.00032876,120]
[394648280,1763806349880,-500.0,0.00032876,120]
[394648281,1763806349889,-500.0,0.00032876,120]
[394648282,1763806349898,-500.0,0.00032876,120]
[394648283,1763806349908,-290.1487641,0.00032876,120]
[394648284,1763806349916,-300.0,0.00032877,2]
[394648285,1763806349926,-300.0,0.00032877,120]
[394648286,1763806349937,-500.0,0.00032877,7]
[394648287,1763806349946,-500.0,0.00032877,7]
[394648288,1763806349955,-500.0,0.00032877,7]
[394648289,1763806349964,-500.0,0.00032877,7]
[394648290,1763806349974,-500.0,0.00032877,7]
[394648291,1763806349982,-505.93962217,0.00032877,7]
[394648292,1763806349991,-500.0,0.00032877,7]
[394648293,1763806350001,-500.0,0.00032877,7]
[394648294,1763806350010,-500.0,0.00032877,7]
[394648295,1763806350019,-500.0,0.00032877,7]
[394648296,1763806350029,-500.0,0.00032877,7]
[394648297,1763806350039,-500.0,0.00032877,7]
[394648298,1763806350048,-500.0,0.00032877,7]
[394648299,1763806350068,-167.32662469,0.00032877,7]
[394648300,1763806350085,-500.0,0.00032877,7]
[394648301,1763806350104,-500.0,0.00032877,7]
[394648302,1763806350124,-500.0,0.00032877,7]
[394648303,1763806350140,-500.0,0.00032877,7]
[394648304,1763806350161,-500.0,0.00032877,7]
[394648305,1763806350180,-500.0,0.00032877,7]
[394648306,1763806350198,-500.0,0.00032877,7]
[394648307,1763806350218,-500.0,0.00032877,7]
[394648308,1763806350237,-500.0,0.00032877,7]
[394648309,1763806350258,-500.0,0.00032877,7]
[394648310,1763806350273,-800.0,0.0003296,7]
[394648311,1763806350292,-1000.0,0.00033,9]
[394648312,1763806350315,-1000.0,0.00033,9]
[394648313,1763806350332,-1000.0,0.00033,6]
[394648314,1763806350347,-426.67177017,0.00033,120]
[394648315,1763806350362,-150.0,0.00033,14]
[394648316,1763806350377,-663.98,0.00033165,2]
[394648317,1763806350392,-500.0,0.00033546,120]
[394648318,1763806350405,-209.40007335,0.00033687,30]
[394648319,1763806350421,-150.0,0.00033699,120]
[394648320,1763806350436,-2000.0,0.00033999,120]
[394648321,1763806350449,-200.0,0.00034,120]
[394648322,1763806350464,-500.0,0.00034056,7]
[394648323,1763806350479,-500.0,0.00034116,2]
[394648324,1763806350493,-350.0,0.00034247,3]
[394648325,1763806350507,-661.95,0.00034319,30]
[394648326,1763806350522,-500.0,0.00034521,2]
[394648327,1763806350537,-2123.355,0.00034569,2]
[394648328,1763806350551,-800.0,0.00034604,7]
[394648329,1763806350565,-500.0,0.00034701,120]
[394648330,1763806350579,-150.0,0.00034751,30]
[394648331,1763806350593,-150.0,0.00034751,30]
[394648332,1763806350607,-150.0,0.00034751,30]
[394648333,1763806350622,-150.0,0.00034751,30]
[394648334,1763806350637,-150.0,0.00034751,30]
[394648335,1763806350651,-227.2003423,0.00034751,30]
[394648336,1763806350666,-574.0,0.00034772,2]
[394648337,1763806350701,-500.0,0.00035,5]
[394648338,1763806350722,-1000.0,0.00035,12]
[394648339,1763806350743,-857.0,0.00035,12]
[394648340,1763806350762,-2978.62740514,0.00035,2]
[394648341,1763806350782,-288.0,0.00035,120]
[394648342,1763806350800,-150.0,0.00035,2]
[394648343,1763806350819,-6347.66786,0.00035,120]
[394648344,1763806350835,-424.17948058,0.00035,30]
[394648345,1763806350852,-1000.0,0.00035104,2]
[394648346,1763806350869,-1000.0,0.00035378,2]
[394648347,1763806350885,-270.69,0.00035445,120]
[394648348,1763806350901,-2000.0,0.00035499,120]
[394648349,1763806350918,-2000.0,0.000355,2]
[394648350,1763806350934,-448.68,0.000356,14]
[394648351,1763806350949,-6163.45,0.000356,14]
[394648352,1763806350965,-300.0,0.00035616,3]
[394648353,1763806350982,-300.0,0.00035616,120]
[394648354,1763806350997,-600.0,0.00035616,2]
[394648355,1763806351012,-499.35529485,0.00035616,2]
[394648356,1763806351027,-1000.0,0.00035652,7]
[394648357,1763806351041,-399.77090736,0.000357,7]
[394648358,1763806351055,-500.0,0.00035855,120]
[394648359,1763806351070,-547.52926,0.00035888,30]
[394648360,1763806351086,-199.0,0.0003589,7]
[394648361,1763806351101,-1000.0,0.00035926,7]
[394648362,1763806351117,-1034.06,0.00036,2]
[394648363,1763806351132,-1000.0,0.00036,120]
[394648364,1763806351147,-200.0,0.00036,120]
[394648365,1763806351162,-547.52926,0.00036088,30]
[394648366,1763806351178,-600.0,0.00036164,2]
[394648367,1763806351198,-1000.0,0.000362,7]
[394648368,1763806351215,-800.0,0.00036248,7]
[394648369,1763806351232,-547.52926,0.00036288,30]
[394648370,1763806351248,-224.08693719,0.00036359,120]
[394648371,1763806351263,-224.57482387,0.00036359,120]
[394648372,1763806351280,-213.20324488,0.00036359,120]
[394648373,1763806351294,-224.57482387,0.00036359,120]
[394648374,1763806351310,-1000.0,0.00036474,7]
[394648375,1763806351325,-547.52926,0.00036488,30]
[394648376,1763806351341,-547.52926,0.00036688,30]
[394648377,1763806351356,-199.0,0.00036712,8]
[394648378,1763806351371,-1034.06,0.0003672,2]
[394648379,1763806351385,-6249.04,0.00036737,2]
[394648380,1763806351399,-1000.0,0.00036748,7]
[394648381,1763806351413,-1825.0975,0.00036888,7]
[394648382,1763806351426,-547.52926,0.00036888,30]
[394648383,1763806351442,-200.0,0.0003689,2]
[394648384,1763806351457,-211.0,0.0003689,30]
[394648385,1763806351471,-500.0,0.00036917,5]
[394648386,1763806351485,-250.0,0.00036986,3]
[394648387,1763806351500,-153.0,0.00036986,120]
[394648388,1763806351514,-372.29,0.00036986,30]
[394648389,1763806351528,-2045.225228,0.00036999,120]
[394648390,1763806351541,-166688.61463496,0.00037,2]
[394648391,1763806351559,-2725134.50889501,0.00037,2]
[394648392,1763806351573,-217822.42316937,0.00037,2]
[394648393,1763806351587,-448.68,0.00037,14]
[394648394,1763806351602,-3535.89279053,0.00037,2]
[394648395,1763806351616,-500.0,0.00037,120]
[394648396,1763806351630,-500.0,0.00037,120]
[394648397,1763806351644,-500.0,0.00037,120]
[394648398,1763806351658,-500.0,0.00037,120]
[394648399,1763806351672,-499.0,0.00037,120]
[394648400,1763806351686,-1000.0,0.00037,60]
[394648401,1763806351701,-1015.41352933,0.00037,7]
[394648402,1763806351716,-500.0,0.0003701,120]
[394648403,1763806351731,-1000.0,0.00037022,7]
[394648404,1763806351744,-547.52926,0.00037088,30]
[394648405,1763806351759,-167.18070033,0.000372,7]
[394648406,1763806351777,-781.30841011,0.000372,120]
[394648407,1763806351793,-781.30841011,0.000372,120]
[394648408,1763806351809,-781.30841011,0.000372,120]
[394648409,1763806351823,-781.30841011,0.000372,120]
[394648410,1763806351838,-781.30841011,0.000372,120]
[394648411,1763806351853,-547.52926,0.00037288,30]
[394648412,1763806351867,-1000.0,0.00037296,7]
[394648413,1763806351882,-1034.06,0.0003744,2]
[394648414,1763806351897,-547.52926,0.00037488,30]
[394648415,1763806351911,-199.0,0.00037534,9]
[394648417,1763806351925,-1236.0,0.0003757,7]
[394648418,1763806351939,-4281.90544402,0.0003759,2]
[394648419,1763806351953,-547.52926,0.00037688,30]
[394648420,1763806351968,-500.0,0.00037786,30]
[394648421,1763806351983,-500.0,0.00037786,30]
[394648422,1763806352000,-500.0,0.00037786,30]
[394648423,1763806352014,-614.63438453,0.00037786,30]
[394648424,1763806352028,-522.24953508,0.00037786,30]
[394648425,1763806352042,-500.0,0.00037786,30]
[394648426,1763806352056,-614.63438453,0.00037786,30]
[394648427,1763806352071,-502.96610734,0.00037786,30]
[394648428,1763806352084,-504.75297932,0.00037786,30]
[394648429,1763806352101,-614.63438453,0.00037786,30]
[394648431,1763806352412,-512.19469593,0.00037786,30]
[394648432,1763806352422,-614.63438453,0.00037786,30]
[394648433,1763806352431,-502.33995286,0.00037786,30]
[394648434,1763806352441,-500.97196497,0.00037786,30]
[394648435,1763806352450,-501.73262413,0.00037786,30]
[394648436,1763806352459,-502.92689348,0.00037786,30]
[394648437,1763806352467,-500.40229953,0.00037786,30]
[394648438,1763806352476,-502.59347844,0.00037786,30]
[394648439,1763806352485,-500.88070158,0.00037786,30]
[394648440,1763806352494,-614.63438453,0.00037786,30]
[394648441,1763806352503,-500.47330212,0.00037786,30]
[394648442,1763806352512,-500.18332521,0.00037786,30]
[394648443,1763806352521,-502.75038055,0.00037786,30]
[394648444,1763806352529,-500.00000001,0.00037786,30]
[394648445,1763806352539,-500.0,0.00037786,30]
[394648446,1763806352548,-507.21961018,0.00037786,30]
[394648447,1763806352558,-500.0,0.00037786,30]
[394648448,1763806352566,-500.0,0.00037786,30]
[394648449,1763806352575,-523.81909841,0.00037786,30]
[394648450,1763806352584,-521.67605931,0.00037786,30]
[394648451,1763806352593,-614.63438453,0.00037786,30]
[394648452,1763806352602,-505.1844753,0.00037786,30]
[394648453,1763806352611,-500.0,0.00037786,30]
[394648454,1763806352620,-500.0,0.00037786,30]
[394648455,1763806352629,-500.00000001,0.00037786,30]
[394648456,1763806352638,-500.0,0.00037786,30]
[394648457,1763806352647,-500.0,0.00037786,30]
[394648458,1763806352656,-500.0,0.00037786,30]
[394648459,1763806352665,-614.63438453,0.00037786,30]
[394648460,1763806352675,-500.0,0.00037786,30]
[394648461,1763806352684,-500.0,0.00037786,30]
[394648462,1763806352694,-199.727928,0.0003788,2]
[394648463,1763806352704,-547.52926,0.00037888,30]
[394648464,1763806352714,-478.92,0.00037891,2]
[394648465,1763806352725,-478.92,0.00037891,2]
[394648466,1763806352734,-800.0,0.00037892,7]
[394648467,1763806352744,-88378.4298639,0.0003797,2]
[394648468,1763806352754,-2000.0,0.00038,2]
[394648469,1763806352765,-355.58668482,0.00038,4]
[394648470,1763806352776,-200.0,0.00038,120]
[394648471,1763806352786,-550972.48855039,0.00038,2]
[394648472,1763806352796,-169.64,0.00038017,2]
[394648473,1763806352806,-547.52926,0.00038088,30]
[394648474,1763806352815,-1052.41577815,0.0003813,120]
[394648475,1763806352825,-1034.06,0.0003816,2]
[394648476,1763806352835,-249.422065,0.00038165,120]
[394648477,1763806352847,-202.67490536,0.00038197,2]
[394648478,1763806352856,-547.52926,0.00038288,30]
[394648479,1763806352865,-503.65613922,0.000383,30]
[394648480,1763806352875,-447.73557784,0.00038356,7]
[394648481,1763806352884,-199.0,0.00038356,10]
[394648482,1763806352893,-539.06478178,0.00038356,120]
[394648483,1763806352902,-461.17910304,0.00038356,2]
[394648484,1763806352911,-150.0,0.00038356,5]
[394648485,1763806352922,-1000.0,0.00038356,5]
[394648486,1763806352931,-300.0,0.00038356,3]
[394648487,1763806352941,-46920.82796904,0.000384,14]
[394648488,1763806352950,-1557.55462871,0.00038421,60]
[394648489,1763806352959,-547.52926,0.00038488,30]
[394648490,1763806352968,-1000.0,0.000385,120]
[394648491,1763806352977,-25000.0,0.0003855,15]
[394648492,1763806352985,-25000.0,0.00038559,15]
[394648493,1763806352994,-25000.0,0.00038568,15]
[394648494,1763806353003,-25000.0,0.00038577,15]
[394648495,1763806353013,-25000.0,0.00038586,15]
[394648496,1763806353022,-25000.0,0.00038594,15]
[394648497,1763806353031,-393.15978629,0.000386,120]
[394648498,1763806353040,-389.15978629,0.000386,120]
[394648499,1763806353050,-25000.0,0.00038603,15]
[394648500,1763806353059,-25000.0,0.00038612,15]
[394648501,1763806353068,-25000.0,0.00038621,15]
[394648502,1763806353077,-25000.0,0.0003863,15]
[394648503,1763806353087,-25000.0,0.00038638,15]
[394648504,1763806353096,-25000.0,0.00038647,15]
[394648505,1763806353104,-25000.0,0.00038656,15]
[394648506,1763806353113,-25000.0,0.00038665,15]
[394648507,1763806353122,-25000.0,0.00038674,15]
[394648508,1763806353131,-25000.0,0.00038682,15]
[394648509,1763806353141,-547.52926,0.00038688,30]
[394648510,1763806353150,-25000.0,0.00038691,15]
[394648511,1763806353160,-500.0,0.000387,120]
[394648512,1763806353169,-500.0,0.000387,120]
[394648513,1763806353177,-500.0,0.000387,120]
[394648514,1763806353187,-500.0,0.000387,120]
[394648515,1763806353197,-500.0,0.000387,120]
[394648516,1763806353206,-500.0,0.000387,120]
[394648517,1763806353215,-500.0,0.000387,120]
[394648518,1763806353224,-500.0,0.000387,120]
[394648519,1763806353234,-500.0,0.000387,120]
[394648520,1763806353242,-500.0,0.000387,120]
[394648521,1763806353251,-500.0,0.000387,120]
[394648522,1763806353260,-500.0,0.000387,120]
[394648523,1763806353269,-500.0,0.000387,120]
[394648524,1763806353278,-500.0,0.000387,120]
[394648525,1763806353287,-500.0,0.000387,120]
[394648526,1763806353296,-500.0,0.000387,120]
[394648527,1763806353305,-500.0,0.000387,120]
[394648528,1763806353314,-500.0,0.000387,120]
[394648529,1763806353323,-500.0,0.000387,120]
[394648530,1763806353331,-500.0,0.000387,120]
[394648531,1763806353341,-25000.0,0.000387,15]
[394648532,1763806353350,-171.12752268,0.000387,5]
[394648533,1763806353359,-971.24563053,0.00038767,5]
[394648534,1763806353367,-478.92,0.0003885,2]
[394648535,1763806353376,-478.92,0.0003885,2]
[394648536,1763806353385,-478.92,0.0003885,2]
[394648537,1763806353394,-478.92,0.0003885,2]
[394648538,1763806353404,-1034.06,0.0003888,2]